fUST/lending_fUST_20260118
["ID","MTS","AMOUNT","RATE_DAILY","PERIOD"]
[402431512,1768675867213,-500.0,0.0001726,3]
[402431514,1768675867223,-284.7821744,0.0001726,3]
[402431516,1768675867233,-1347.43,0.0001726,3]
[402431518,1768675867242,-500.0,0.0001726,3]
[402431520,1768675867251,-500.0,0.0001726,3]
[402431522,1768675867261,-1185.09,0.0001726,3]
[402431524,1768675867271,-500.0,0.0001726,3]
[402431527,1768675867281,-500.0,0.0001726,3]
[402431529,1768675867291,-500.0,0.0001726,3]
[402431531,1768675867301,-504.66,0.0001726,3]
[402431533,1768675867311,-500.0,0.0001726,3]
[402431535,1768675867320,-500.0,0.0001726,3]
[402431537,1768675867330,-500.0,0.0001726,3]
[402431539,1768675867339,-555.8,0.0001726,3]
[402431541,1768675867349,-500.0,0.0001726,3]
[402431543,1768675867358,-564.15,0.0001726,3]
[402431545,1768675867367,-606.33,0.0001726,3]
[402431547,1768675867376,-500.0,0.0001726,3]
[402431549,1768675867386,-1200.0,0.0001726,2]
[402431551,1768675867395,-500.0,0.0001726,3]
[402431553,1768675867405,-500.0,0.0001726,3]
[402431555,1768675867416,-1439.56,0.0001726,3]
[402431557,1768675867428,-500.0,0.0001726,3]
[402431559,1768675867439,-500.0,0.0001726,3]
[402431561,1768675867448,-892.6,0.0001726,3]
[402431563,1768675867458,-906.85,0.0001726,3]
[402431565,1768675867467,-770.84,0.0001726,3]
[402431567,1768675867476,-826.27,0.0001726,3]
[402431569,1768675867485,-274.62103674,0.0001726,3]
[402431571,1768675867495,-500.0,0.0001726,3]
[402431573,1768675867504,-500.0,0.0001726,3]
[402431575,1768675867514,-646.32,0.0001726,3]
[402431577,1768675867524,-500.0,0.0001726,3]
[402431579,1768675867533,-1431.76,0.0001726,3]
[402431581,1768675867543,-500.0,0.0001726,3]
[402431583,1768675867552,-1218.15,0.0001726,3]
[402431585,1768675867561,-1873.13,0.0001726,3]
[402431587,1768675867571,-509.04,0.0001726,3]
[402431589,1768675867580,-741.52,0.0001726,3]
[402431591,1768675867589,-500.0,0.0001726,3]
[402431593,1768675867598,-1051.96,0.0001726,3]
[402431596,1768675867608,-500.0,0.0001726,3]
[402431597,1768675867618,-500.0,0.0001726,3]
[402431600,1768675867630,-655.97,0.0001726,3]
[402431602,1768675867642,-596.42,0.0001726,3]
[402431603,1768675867653,-500.0,0.0001726,3]
[402431606,1768675867663,-500.0,0.0001726,3]
[402431608,1768675867673,-600.91,0.0001726,3]
[402431610,1768675867683,-1783.16,0.0001726,3]
[402431612,1768675867691,-763.04,0.0001726,3]
[402431614,1768675867701,-552.3,0.0001726,3]
[402431616,1768675867709,-500.0,0.0001726,3]
[402431618,1768675867718,-547.52,0.0001726,3]
[402431620,1768675867727,-500.0,0.0001726,3]
[402431621,1768675867737,-861.47,0.0001726,3]
[402431623,1768675867747,-500.0,0.0001726,3]
[402431626,1768675867757,-696.99,0.0001726,3]
[402431628,1768675867767,-500.0,0.0001726,3]
[402431630,1768675867776,-680.42,0.0001726,3]
[402431632,1768675867785,-500.0,0.0001726,3]
[402431634,1768675867794,-500.0,0.0001726,3]
[402431636,1768675867803,-500.0,0.0001726,3]
[402431638,1768675867812,-693.13,0.0001726,3]
[402431640,1768675867822,-500.0,0.0001726,3]
[402431642,1768675867831,-500.0,0.0001726,3]
[402431644,1768675867841,-500.0,0.0001726,3]
[402431646,1768675867850,-909.21,0.0001726,3]
[402431648,1768675867860,-1860.62,0.0001726,3]
[402431650,1768675867869,-227.93902115,0.0001726,3]
[402431652,1768675867878,-880.59,0.0001726,3]
[402431654,1768675867888,-935.44,0.0001726,3]
[402431656,1768675867897,-1236.21,0.0001726,3]
[402431658,1768675867906,-679.86,0.0001726,3]
[402431660,1768675867916,-500.0,0.0001726,3]
[402431662,1768675867925,-822.44,0.0001726,3]
[402431664,1768675867934,-500.0,0.0001726,3]
[402431666,1768675867943,-500.0,0.0001726,3]
[402431668,1768675867953,-692.88,0.0001726,3]
[402431670,1768675867962,-813.92,0.0001726,3]
[402431672,1768675867971,-1263.08,0.0001726,3]
[402431674,1768675867982,-500.0,0.0001726,3]
[402431676,1768675867992,-500.0,0.0001726,3]
[402431678,1768675868001,-500.0,0.0001726,3]
[402431680,1768675868011,-773.3,0.0001726,3]
[402431682,1768675868021,-1573.93,0.0001726,3]
[402431684,1768675868031,-500.0,0.0001726,3]
[402431686,1768675868040,-500.0,0.0001726,3]
[402431688,1768675868050,-925.02,0.0001726,3]
[402431690,1768675868059,-568.07228824,0.0001726,3]
[402431693,1768675868068,-500.0,0.0001726,3]
[402431695,1768675868078,-2551.07,0.0001726,3]
[402431697,1768675868089,-500.0,0.0001726,2]
[402431699,1768675868099,-500.0,0.0001726,3]
[402431701,1768675868109,-500.0,0.0001726,3]
[402431703,1768675868120,-500.0,0.0001726,3]
[402431705,1768675868130,-1624.98,0.0001726,3]
[402431707,1768675868140,-500.0,0.0001726,3]
[402431709,1768675868149,-500.0,0.0001726,3]
[402431711,1768675868159,-824.25,0.0001726,3]
[402431713,1768675868169,-500.0,0.0001726,3]
[402431715,1768675868178,-500.0,0.0001726,3]
[402431717,1768675868188,-1074.68,0.0001726,3]
[402431719,1768675868198,-980.22,0.0001726,3]
[402431721,1768675868208,-500.0,0.0001726,3]
[402431724,1768675868218,-500.0,0.0001726,3]
[402431726,1768675868228,-849.33,0.0001726,3]
[402431728,1768675868237,-500.0,0.0001726,3]
[402431730,1768675868247,-500.0,0.0001726,3]
[402431732,1768675868256,-500.0,0.0001726,3]
[402431734,1768675868266,-526.11,0.0001726,3]
[402431736,1768675868275,-982.5,0.0001726,3]
[402431738,1768675868285,-901.72,0.0001726,3]
[402431740,1768675868295,-500.0,0.0001726,3]
[402431742,1768675868305,-500.0,0.0001726,3]
[402431744,1768675868315,-682.73,0.0001726,3]
[402431746,1768675868325,-533.96,0.0001726,3]
[402431748,1768675868334,-2396.6,0.0001726,3]
[402431750,1768675868344,-500.0,0.0001726,3]
[402431752,1768675868354,-1103.35,0.0001726,3]
[402431754,1768675868363,-738.3,0.0001726,3]
[402431756,1768675868373,-702.8,0.0001726,3]
[402431758,1768675868382,-823.13,0.0001726,3]
[402431760,1768675868394,-1173.22,0.0001726,3]
[402431762,1768675868403,-500.0,0.0001726,3]
[402431764,1768675868413,-500.0,0.0001726,3]
[402431766,1768675868423,-500.0,0.0001726,3]
[402431768,1768675868433,-500.0,0.0001726,3]
[402431770,1768675868442,-500.0,0.0001726,3]
[402431772,1768675868451,-7250.78,0.0001726,3]
[402431774,1768675868460,-552.93,0.0001726,3]
[402431776,1768675868470,-1399.24,0.0001726,3]
[402431778,1768675868479,-1148.17,0.0001726,3]
[402431780,1768675868490,-554.51009114,0.0001726,3]
[402431782,1768675868500,-3131.96,0.0001726,3]
[402431784,1768675868510,-876.59,0.0001726,3]
[402431786,1768675868520,-580.93,0.0001726,3]
[402431788,1768675868529,-1568.81,0.0001726,3]
[402431790,1768675868538,-500.0,0.0001726,3]
[402431792,1768675868548,-500.0,0.0001726,3]
[402431794,1768675868557,-1569.6,0.0001726,3]
[402431797,1768675868567,-1045.69,0.0001726,3]
[402431799,1768675868576,-500.0,0.0001726,3]
[402431801,1768675868586,-2897.63,0.0001726,3]
[402431803,1768675868596,-1000.0,0.0001726,2]
[402431805,1768675868605,-500.0,0.0001726,3]
[402431807,1768675868615,-500.0,0.0001726,3]
[402431809,1768675868629,-2015.39,0.0001726,3]
[402431811,1768675868639,-500.0,0.0001726,3]
[402431813,1768675868648,-500.0,0.0001726,3]
[402431815,1768675868658,-1285.11,0.0001726,3]
[402431817,1768675868670,-585.26,0.0001726,3]
[402431819,1768675868680,-500.0,0.0001726,3]
[402431821,1768675868689,-1023.93,0.0001726,3]
[402431823,1768675868699,-500.0,0.0001726,2]
[402431826,1768675868708,-14376.21,0.0001726,3]
[402431828,1768675868718,-500.0,0.0001726,3]
[402431830,1768675868727,-1321.15,0.0001726,3]
[402431832,1768675868736,-500.0,0.0001726,3]
[402431834,1768675868746,-500.0,0.0001726,3]
[402431836,1768675868755,-1071.96,0.0001726,3]
[402431838,1768675868765,-785.27,0.0001726,3]
[402431840,1768675868774,-500.0,0.0001726,2]
[402431842,1768675868784,-168.0,0.00017294,2]
[402431844,1768675868795,-168.0,0.00017311,2]
[402431846,1768675868804,-1897.0,0.00017333,2]
[402431848,1768675868813,-412.0,0.00017365,2]
[402431850,1768675868823,-168.0,0.00017388,2]
[402431852,1768675868832,-778.0,0.000174,2]
[402431854,1768675868841,-860.579,0.00017411,2]
[402431856,1768675868851,-199.164,0.00017411,2]
[402431858,1768675868860,-417.0,0.00017411,2]
[402431860,1768675868870,-417.0,0.00017411,2]
[402431862,1768675868879,-661.646,0.00017411,2]
[402431864,1768675868889,-2147.0,0.00017411,2]
[402431866,1768675868898,-202.667,0.00017411,2]
[402431868,1768675868908,-168.0,0.00017413,2]
[402431870,1768675868917,-1897.0,0.00017498,2]
[402431872,1768675868927,-501.0,0.00017519,2]
[402431874,1768675868937,-606.47,0.00017534,3]
[402431876,1768675868946,-500.0,0.00017534,3]
[402431878,1768675868956,-500.0,0.00017534,3]
[402431880,1768675868965,-500.0,0.00017534,3]
[402431882,1768675868976,-500.0,0.00017534,3]
[402431884,1768675868986,-500.0,0.00017534,3]
[402431887,1768675868996,-500.0,0.00017534,3]
[402431889,1768675869007,-500.0,0.00017534,3]
[402431891,1768675869016,-500.0,0.00017534,3]
[402431893,1768675869026,-417.990597,0.00017534,3]
[402431895,1768675869036,-785.35,0.00017534,3]
[402431897,1768675869045,-300.96871459,0.00017534,3]
[402431899,1768675869055,-500.0,0.00017534,3]
[402431901,1768675869064,-958.0,0.00017534,3]
[402431903,1768675869074,-945.0,0.00017534,3]
[402431905,1768675869083,-500.0,0.00017534,3]
[402431907,1768675869094,-500.0,0.00017534,3]
[402431909,1768675869104,-500.0,0.00017534,3]
[402431911,1768675869114,-500.0,0.00017534,3]
[402431913,1768675869124,-500.0,0.00017534,3]
[402431915,1768675869134,-500.0,0.00017534,3]
[402431917,1768675869144,-500.0,0.00017534,3]
[402431919,1768675869154,-500.0,0.00017534,3]
[402431921,1768675869164,-500.0,0.00017534,3]
[402431923,1768675869174,-660.71,0.00017534,3]
[402431925,1768675869186,-488.07553798,0.00017534,3]
[402431927,1768675869196,-717.86,0.00017534,3]
[402431929,1768675869206,-500.0,0.00017534,3]
[402431931,1768675869216,-586.64,0.00017534,3]
[402431933,1768675869226,-1050.44,0.00017534,3]
[402431935,1768675869235,-500.0,0.00017534,3]
[402431937,1768675869246,-500.0,0.00017534,3]
[402431939,1768675869256,-748.64,0.00017534,3]
[402431941,1768675869266,-500.0,0.00017534,3]
[402431943,1768675869275,-500.0,0.00017534,3]
[402431945,1768675869285,-500.0,0.00017534,3]
[402431947,1768675869295,-500.0,0.00017534,3]
[402431949,1768675869306,-824.78,0.00017534,3]
[402431951,1768675869315,-500.0,0.00017534,3]
[402431953,1768675869325,-500.0,0.00017534,3]
[402431955,1768675869334,-500.0,0.00017534,3]
[402431957,1768675869344,-500.0,0.00017534,3]
[402431959,1768675869353,-629.37,0.00017534,3]
[402431961,1768675869363,-500.0,0.00017534,3]
[402431963,1768675869373,-618.03,0.00017534,3]
[402431965,1768675869383,-500.0,0.00017534,3]
[402431967,1768675869392,-785.43,0.00017534,3]
[402431969,1768675869401,-1229.27,0.00017534,3]
[402431971,1768675869411,-500.0,0.00017534,3]
[402431973,1768675869420,-503.99,0.00017534,3]
[402431975,1768675869430,-500.0,0.00017534,3]
[402431977,1768675869439,-1332.53,0.00017534,3]
[402431979,1768675869449,-500.0,0.00017534,3]
[402431981,1768675869458,-597.8010965,0.00017534,3]
[402431983,1768675869468,-1544.82,0.00017534,3]
[402431985,1768675869478,-500.0,0.00017534,3]
[402431988,1768675869488,-500.0,0.00017534,3]
[402431990,1768675869498,-500.0,0.00017534,3]
[402431991,1768675869508,-500.0,0.00017534,3]
[402431993,1768675869518,-500.0,0.00017534,3]
[402431995,1768675869527,-500.0,0.00017534,3]
[402431997,1768675869537,-500.0,0.00017534,3]
[402431999,1768675869547,-724.87,0.00017534,3]
[402432001,1768675869556,-500.0,0.00017534,3]
[402432003,1768675869565,-674.95746037,0.00017534,3]
[402432005,1768675869575,-500.0,0.00017534,3]
[402432007,1768675869584,-686.6,0.00017534,3]
[402432009,1768675869594,-1363.3,0.00017534,3]
[402432011,1768675869603,-500.0,0.00017534,3]
[402432013,1768675869613,-500.0,0.00017534,3]
[402432015,1768675869625,-500.0,0.00017534,3]
[402432017,1768675869634,-500.0,0.00017534,3]
[402432026,1768675869706,-500.0,0.00017534,3]
[402432028,1768675869716,-500.0,0.00017534,3]
[402432030,1768675869725,-500.0,0.00017534,3]
[402432031,1768675869734,-500.0,0.00017534,3]
[402432034,1768675869744,-500.0,0.00017534,3]
[402432036,1768675869755,-1486.35,0.00017534,3]
[402432038,1768675869764,-500.0,0.00017534,3]
[402432039,1768675869773,-565.26,0.00017534,3]
[402432041,1768675869782,-500.0,0.00017534,3]
[402432043,1768675869791,-1421.58,0.00017534,3]
[402432045,1768675869800,-311.24128532,0.00017534,3]
[402432047,1768675869809,-500.0,0.00017534,3]
[402432049,1768675869819,-895.06,0.00017534,3]
[402432051,1768675869828,-646.41,0.00017534,3]
[402432053,1768675869837,-500.0,0.00017534,3]
[402432055,1768675869847,-500.0,0.00017534,3]
[402432057,1768675869856,-996.79,0.00017534,3]
[402432059,1768675869866,-764.09,0.00017534,3]
[402432061,1768675869875,-525.18,0.00017534,3]
[402432063,1768675869884,-716.74,0.00017534,3]
[402432065,1768675869893,-1323.24,0.00017534,3]
[402432067,1768675869902,-500.0,0.00017534,3]
[402432069,1768675869912,-770.45,0.00017534,3]
[402432071,1768675869921,-500.0,0.00017534,3]
[402432073,1768675869930,-500.0,0.00017534,3]
[402432075,1768675869939,-500.0,0.00017534,3]
[402432077,1768675869948,-500.0,0.00017534,3]
[402432079,1768675869958,-500.0,0.00017534,3]
[402432081,1768675869967,-1407.33,0.00017534,3]
[402432083,1768675869976,-632.04,0.00017534,3]
[402432085,1768675869985,-931.88,0.00017534,3]
[402432087,1768675869995,-500.0,0.00017534,3]
[402432089,1768675870005,-1247.83,0.00017534,3]
[402432091,1768675870016,-408.02411447,0.00017534,3]
[402432094,1768675870026,-1206.36,0.00017534,3]
[402432096,1768675870035,-505.92,0.00017534,3]
[402432097,1768675870046,-500.0,0.00017534,3]
[402432099,1768675870055,-500.0,0.00017534,3]
[402432101,1768675870064,-538.41,0.00017534,3]
[402432103,1768675870073,-500.0,0.00017534,3]
[402432105,1768675870082,-500.0,0.00017534,3]
[402432107,1768675870092,-1150.55,0.00017534,3]
[402432109,1768675870101,-500.0,0.00017534,3]
[402432111,1768675870110,-989.09,0.00017534,3]
[402432113,1768675870120,-500.0,0.00017534,3]
[402432115,1768675870129,-975.59,0.00017534,3]
[402432117,1768675870138,-1116.5,0.00017534,3]
[402432119,1768675870147,-500.0,0.00017534,3]
[402432121,1768675870156,-500.0,0.00017534,3]
[402432123,1768675870165,-621.29598782,0.00017534,3]
[402432125,1768675870175,-500.0,0.00017534,3]
[402432127,1768675870184,-500.0,0.00017534,3]
[402432129,1768675870194,-500.0,0.00017534,3]
[402432131,1768675870203,-1352.2,0.00017534,3]
[402432133,1768675870212,-500.0,0.00017534,3]
[402432135,1768675870222,-500.0,0.00017534,3]
[402432137,1768675870231,-547.667889,0.00017534,3]
[402432139,1768675870241,-626.58,0.00017534,3]
[402432141,1768675870250,-500.0,0.00017534,3]
[402432143,1768675870259,-1215.54,0.00017534,3]
[402432145,1768675870268,-500.0,0.00017534,3]
[402432147,1768675870277,-500.0,0.00017534,3]
[402432149,1768675870286,-537.14,0.00017534,3]
[402432151,1768675870295,-870.79,0.00017534,3]
[402432153,1768675870304,-500.0,0.00017534,2]
[402432155,1768675870314,-506.03,0.00017534,3]
[402432157,1768675870324,-519.62,0.00017534,3]
[402432159,1768675870333,-510.42,0.00017534,3]
[402432161,1768675870342,-156.77330136,0.00017534,2]
[402432163,1768675870351,-500.0,0.00017534,3]
[402432165,1768675870360,-500.0,0.00017534,3]
[402432167,1768675870369,-379.25255787,0.00017534,3]
[402432169,1768675870378,-500.0,0.00017534,3]
[402432171,1768675870387,-502.82,0.00017534,3]
[402432173,1768675870396,-500.0,0.00017534,3]
[402432175,1768675870406,-808.14,0.00017534,3]
[402432177,1768675870415,-500.0,0.00017534,3]
[402432179,1768675870424,-500.0,0.00017534,3]
[402432181,1768675870433,-500.0,0.00017534,3]
[402432182,1768675870442,-500.0,0.00017534,3]
[402432184,1768675870451,-1374.8,0.00017534,3]
[402432186,1768675870460,-724.63,0.00017534,3]
[402432188,1768675870469,-500.0,0.00017534,3]
[402432190,1768675870478,-1054.46,0.00017534,3]
[402432192,1768675870487,-500.0,0.00017534,3]
[402432193,1768675870496,-500.0,0.00017534,3]
[402432195,1768675870506,-500.0,0.00017534,3]
[402432197,1768675870515,-737.54,0.00017534,3]
[402432199,1768675870523,-500.0,0.00017534,3]
[402432201,1768675870532,-500.0,0.00017534,3]
[402432203,1768675870541,-309.63209923,0.00017534,3]
[402432205,1768675870551,-500.0,0.00017534,3]
[402432207,1768675870560,-952.61,0.00017534,3]
[402432209,1768675870569,-500.0,0.00017534,3]
[402432211,1768675870578,-500.0,0.00017534,3]
[402432213,1768675870587,-503.62,0.00017534,3]
[402432215,1768675870597,-500.0,0.00017534,3]
[402432217,1768675870606,-590.26232333,0.00017534,3]
[402432219,1768675870614,-979.67,0.00017534,3]
[402432221,1768675870627,-719.44,0.00017534,3]
[402432223,1768675870636,-932.18,0.00017534,3]
[402432225,1768675870645,-500.0,0.00017534,3]
[402432227,1768675870655,-500.0,0.00017534,3]
[402432229,1768675870665,-982.12,0.00017534,3]
[402432231,1768675870674,-500.0,0.00017534,3]
[402432233,1768675870683,-915.97,0.00017534,3]
[402432235,1768675870694,-514.33,0.00017534,3]
[402432237,1768675870703,-500.0,0.00017534,3]
[402432239,1768675870712,-500.0,0.00017534,3]
[402432241,1768675870721,-500.0,0.00017534,3]
[402432243,1768675870731,-500.0,0.00017534,3]
[402432245,1768675870740,-611.35197763,0.00017534,3]
[402432247,1768675870750,-822.86,0.00017534,3]
[402432249,1768675870759,-1158.19,0.00017534,3]
[402432251,1768675870768,-183.181997,0.00017534,2]
[402432253,1768675870778,-500.0,0.00017534,3]
[402432255,1768675870788,-183.181997,0.00017534,2]
[402432257,1768675870798,-183.181997,0.00017534,2]
[402432259,1768675870808,-183.181998,0.00017534,2]
[402432261,1768675870818,-500.0,0.00017534,3]
[402432263,1768675870828,-500.0,0.00017534,3]
[402432265,1768675870837,-500.0,0.00017534,3]
[402432267,1768675870846,-500.0,0.00017534,3]
[402432269,1768675870856,-1545.23,0.00017534,3]
[402432271,1768675870864,-500.0,0.00017534,3]
[402432273,1768675870874,-1920.93,0.00017534,3]
[402432275,1768675870883,-536.54,0.00017534,3]
[402432277,1768675870892,-500.0,0.00017534,3]
[402432279,1768675870901,-1564.12,0.00017534,3]
[402432280,1768675870912,-500.0,0.00017534,3]
[402432282,1768675870921,-1132.13,0.00017534,3]
[402432283,1768675870931,-500.0,0.00017534,3]
[402432284,1768675870940,-500.0,0.00017534,3]
[402432285,1768675870949,-652.64,0.00017534,3]
[402432286,1768675870958,-500.0,0.00017534,3]
[402432287,1768675870967,-1416.4,0.00017534,3]
[402432288,1768675870976,-500.0,0.00017534,3]
[402432289,1768675870985,-500.0,0.00017534,3]
[402432290,1768675870993,-1075.4,0.00017534,3]
[402432291,1768675871002,-500.0,0.00017534,3]
[402432292,1768675871011,-1096.32,0.00017534,3]
[402432293,1768675871020,-500.0,0.00017534,3]
[402432294,1768675871030,-500.0,0.00017534,3]
[402432295,1768675871039,-752.51,0.00017534,3]
[402432296,1768675871048,-500.0,0.00017534,3]
[402432297,1768675871056,-500.0,0.00017534,3]
[402432298,1768675871065,-500.0,0.00017534,3]
[402432299,1768675871074,-500.0,0.00017534,3]
[402432300,1768675871083,-500.0,0.00017534,3]
[402432301,1768675871092,-657.67,0.00017534,3]
[402432302,1768675871101,-500.0,0.00017534,3]
[402432303,1768675871110,-500.0,0.00017534,3]
[402432304,1768675871119,-784.82,0.00017534,3]
[402432305,1768675871128,-500.0,0.00017534,3]
[402432306,1768675871136,-625.18,0.00017534,3]
[402432307,1768675871145,-500.0,0.00017534,3]
[402432308,1768675871154,-500.0,0.00017534,3]
[402432310,1768675871163,-1000.0,0.00017534,2]
[402432311,1768675871173,-500.0,0.00017534,3]
[402432312,1768675871182,-1239.89,0.00017534,3]
[402432314,1768675871191,-521.93686507,0.00017534,3]
[402432316,1768675871200,-1672.89,0.00017534,3]
[402432318,1768675871209,-652.44,0.00017534,3]
[402432320,1768675871218,-500.0,0.00017534,3]
[402432322,1768675871228,-1667.11,0.00017534,3]
[402432324,1768675871237,-620.35,0.00017534,3]
[402432326,1768675871247,-1466.89,0.00017534,3]
[402432328,1768675871257,-484.52529222,0.00017534,3]
[402432330,1768675871266,-500.0,0.00017534,3]
[402432332,1768675871275,-500.0,0.00017534,3]
[402432334,1768675871284,-1430.32,0.00017534,3]
[402432336,1768675871293,-500.0,0.00017534,3]
[402432338,1768675871302,-500.0,0.00017534,3]
[402432340,1768675871312,-500.0,0.00017534,3]
[402432341,1768675871321,-500.0,0.00017534,3]
[402432343,1768675871330,-500.0,0.00017534,3]
[402432345,1768675871339,-500.0,0.00017534,3]
[402432347,1768675871349,-500.0,0.00017534,3]
[402432349,1768675871358,-347.44370923,0.00017534,3]
[402432351,1768675871367,-500.0,0.00017534,3]
[402432353,1768675871376,-2427.21,0.00017534,3]
[402432355,1768675871385,-272.37095351,0.00017534,3]
[402432357,1768675871394,-843.85,0.00017534,3]
[402432359,1768675871404,-2175.59,0.00017534,3]
[402432361,1768675871414,-584.46,0.00017534,3]
[402432363,1768675871423,-500.0,0.00017534,3]
[402432365,1768675871431,-500.0,0.00017534,3]
[402432367,1768675871441,-500.0,0.00017534,3]
[402432369,1768675871450,-500.0,0.00017534,3]
[402432371,1768675871459,-524.22048595,0.00017534,3]
[402432373,1768675871468,-753.6,0.00017534,3]
[402432374,1768675871477,-1210.67,0.00017534,3]
[402432376,1768675871487,-500.0,0.00017534,3]
[402432378,1768675871496,-1177.08,0.00017534,3]
[402432380,1768675871510,-500.0,0.00017534,3]
[402432382,1768675871519,-500.0,0.00017534,3]
[402432384,1768675871528,-500.0,0.00017534,3]
[402432386,1768675871538,-733.19,0.00017534,3]
[402432388,1768675871547,-591.87,0.00017534,3]
[402432390,1768675871556,-553.19,0.00017534,3]
[402432392,1768675871565,-500.0,0.00017534,3]
[402432394,1768675871574,-500.0,0.00017534,3]
[402432396,1768675871583,-500.0,0.00017534,3]
[402432398,1768675871592,-500.0,0.00017534,3]
[402432400,1768675871601,-500.0,0.00017534,3]
[402432402,1768675871611,-500.0,0.00017534,3]
[402432404,1768675871620,-500.0,0.00017534,3]
[402432406,1768675871633,-609.57,0.00017534,3]
[402432408,1768675871642,-500.0,0.00017534,3]
[402432410,1768675871651,-779.45,0.00017534,3]
[402432411,1768675871661,-930.42,0.00017534,3]
[402432413,1768675871671,-500.0,0.00017534,3]
[402432415,1768675871680,-978.58,0.00017534,3]
[402432417,1768675871689,-500.0,0.00017534,3]
[402432419,1768675871698,-503.39,0.00017534,3]
[402432421,1768675871707,-500.0,0.00017534,3]
[402432423,1768675871716,-500.0,0.00017534,3]
[402432425,1768675871725,-676.55,0.00017534,3]
[402432427,1768675871734,-251.11469402,0.00017534,3]
[402432428,1768675871743,-1244.98,0.00017534,3]
[402432430,1768675871752,-500.0,0.00017534,3]
[402432432,1768675871761,-1356.45,0.00017534,3]
[402432434,1768675871770,-658.22,0.00017534,3]
[402432436,1768675871779,-500.0,0.00017534,3]
[402432438,1768675871788,-684.41,0.00017534,3]
[402432440,1768675871797,-667.89,0.00017534,3]
[402432442,1768675871806,-500.0,0.00017534,3]
[402432444,1768675871815,-1628.67,0.00017534,3]
[402432446,1768675871824,-500.0,0.00017534,3]
[402432448,1768675871833,-500.0,0.00017534,3]
[402432450,1768675871842,-500.0,0.00017534,3]
[402432452,1768675871851,-1219.0,0.00017534,3]
[402432454,1768675871860,-825.95,0.00017534,3]
[402432456,1768675871870,-937.01,0.00017534,3]
[402432458,1768675871879,-500.0,0.00017534,3]
[402432460,1768675871888,-843.19,0.00017534,3]
[402432462,1768675871897,-500.0,0.00017534,3]
[402432464,1768675871906,-947.02,0.00017534,3]
[402432465,1768675871915,-500.0,0.00017534,3]
[402432467,1768675871926,-933.84,0.00017534,3]
[402432469,1768675871936,-947.02,0.00017534,3]
[402432471,1768675871945,-500.0,0.00017534,3]
[402432473,1768675871954,-1134.33,0.00017534,3]
[402432475,1768675871964,-500.0,0.00017534,3]
[402432477,1768675871973,-1667.68,0.00017534,3]
[402432479,1768675871982,-500.0,0.00017534,3]
[402432481,1768675871991,-640.01,0.00017534,3]
[402432483,1768675872000,-500.0,0.00017534,3]
[402432485,1768675872010,-500.0,0.00017534,3]
[402432487,1768675872020,-761.33,0.00017534,3]